{"text_format":"1","workbook":"xlsx","n_sheets":2,"sheets":["reseed calculator","data HIDE"],"not_rendered":{"charts":0,"images":2,"macros":1,"external_links":0,"defined_names":1,"comments":1,"pivot_tables":0},"unopened":[],"bounds":{"document_bytes":16777216,"sheet_cells":100000,"rows_first":2000,"rows_last":500,"rows_between":2000,"halvings":0,"cell_chars":16384,"cell_head_chars":4096},"cells_cut":0,"cells_raw":0,"read":"whole","date_system":"1900"}

{"sheet":"reseed calculator","index":0,"n_rows":88,"n_cols":8,"rows_kept":88,"cut":false,"hidden":false,"merged":[[35,2,36,3],[6,2,8,3],[49,0,50,5],[47,0,47,5]]}
[]
[". . . . . . . . . . . . . . . . . . . . . . . . . . . . . . . . . . . . . . . "]
["Reseeding Decision Tool",null,null,null,"Printed:",{"$f":"TODAY()","v":"2022-03-22"}]
[]
[null,"*** Enter/select changes to items in BLUE only ***"]
[]
["Farm Information:",null,{"$f":"IF(E14=0,\"Probable yield does not exist for this soil zone & Risk Area combination. Please select a valid soil zone.\",\"\")","v":""}]
[null,"MASC - Risk Area",null,null,"Risk Area #2"]
[null,"MASC - Soil Zone",null,null,"D",null,null,"hide this rows…now all D soil"]
[null,"MASC AgriInsurance Coverage level",null,null,0.8]
[]
["Original Crop:",null,null,null,"Canola"]
[null,"MASC - Individual Productivity Index (IPI)",null,null,1,null,null,"hide this rows…not going to use"]
[null,"Estimated MASC Probable Yield (bu/ac)",null,null,{"$f":"HLOOKUP('reseed calculator'!$E$8,'data HIDE'!$C$20:$R$102,VLOOKUP('reseed calculator'!$E$9,'data HIDE'!$L$1:$U$11,HLOOKUP('reseed calculator'!$E$12,'data HIDE'!$C$1:$J$14,14,FALSE)),FALSE)*'reseed calculator'!$E$13","v":41.8}]
[null,"Estimated Market Price ($/bu)",null,null,{"$f":"HLOOKUP($E$12,'data HIDE'!$C$1:$J$13,10,FALSE)","v":15.88}]
[]
["Potential Reseeded Crop:",null,null,null,"Canola"]
[null,"MASC - Individual Productivity Index (IPI)",null,null,{"$f":"IF($E$17=\"soybeans\",\"-\",1)","v":1}]
[null,"MASC - Individual Coverage (bu/ac)",null,null,{"$f":"IF($E$17=\"soybeans\",HLOOKUP('reseed calculator'!$E$8,'data HIDE'!$C$80:$R$81,2,FALSE),\"-\")","v":"-"}]
[null,"Estimated Market Price ($/bu)",null,null,{"$f":"HLOOKUP($E$17,'data HIDE'!$C$1:$J$13,10,FALSE)","v":15.88}]
[]
[{"$f":"\"Damaged \"&E12&\" Plant Stand Evaluation:\"","v":"Damaged Canola Plant Stand Evaluation:"},null,null,null,"Plants/m2"]
[null,"Field Sample Plant Counts/m2",null,null,10]
[null,"  * enter up to (5) plant counts in the boxes to the right"]
[null,"  * leave entries blank if less than (5) counts were taken"]
[null,"  * 10.8 plants/m2 = approx. 1 plant/ft2"]
[]
[]
[null,"Average Plant Count/m2",null,null,{"$f":"ROUND(AVERAGE(E23:E27),1)","v":10}]
[null,"Plant Count - Tiller or Yield Factor",null,null,{"$f":"IF(E12=\"Canola\",IF(E29>40.9,1,VLOOKUP(E29,'data HIDE'!U21:V430,2,0)),HLOOKUP(E12,'data HIDE'!C1:J13,12,FALSE))","v":0.65}]
[null,"Plant Count - Tillers to Bushels Factor",null,null,{"$f":"IF(E12=\"Canola\",\"-\",HLOOKUP(E12,'data HIDE'!C1:J13,13,FALSE))","v":"-"}]
[null,"Estimated Yield (bu/ac)",null,null,{"$f":"IF(E12=\"Canola\",E14*E30,(E29*E30*E31))","v":27.169999999999998}]
[null,"Estimated Gross Revenue ($/ac)",null,null,{"$f":"E32*E15","v":431.45959999999997}]
[]
[{"$f":"E17&\" Reseeding Evaluation:\"","v":"Canola Reseeding Evaluation:"}]
[null,"Reseed Date",{"$f":"IF(E36=\"1st week june\",\"Contact your local MASC office to verify seeding deadlines.\",IF(E36=\"2nd week june\",\"Contact your local MASC office to verify seeding deadlines.\",IF(E36=\"3rd week June\",\"Contact your local MASC office to verify seeding deadlines.\",\"\")))","v":"Contact your local MASC office to verify seeding deadlines."},null,"1st week June"]
[null,"Date - Yield Factor",null,null,{"$f":"HLOOKUP(E17,'data HIDE'!C1:J13,VLOOKUP(E36,'data HIDE'!A2:C9,2,FALSE),FALSE)","v":0.91639999999999999}]
[null,"Estimated Reseed Yield (bu/ac)",null,null,{"$f":"IF(AND(E12=\"Wheat - Winter\",E17=\"Canola\"),HLOOKUP('reseed calculator'!E8,'data HIDE'!$C$20:$R$102,VLOOKUP('reseed calculator'!E9,'data HIDE'!$L$1:$U$11,HLOOKUP('reseed calculator'!E17,'data HIDE'!C1:J14,14,FALSE)),FALSE)*'reseed calculator'!E18*E37*'data HIDE'!C16,IF(E17=\"soybeans\",E19*E37,HLOOKUP('reseed calculator'!E8,'data HIDE'!$C$20:$R$102,VLOOKUP('reseed calculator'!E9,'data HIDE'!$L$1:$U$11,HLOOKUP('reseed calculator'!E17,'data HIDE'!C1:J14,14,FALSE)),FALSE))*'reseed calculator'!E18*E37)","v":38.305519999999994}]
[null,"Estimated AgriInsurance Reseeding Indemnity ($/ac)",null,null,{"$f":"IF(E32>=E14,0,ROUND((((E14*E10)*0.25)*HLOOKUP(E12,'data HIDE'!C1:J13,10,FALSE)),2))","v":132.76}]
[null,"Estimated Seed Company Reimbursement ($/ac)",null,null,0]
[null,"Reseed Seed Costs ($/ac)",null,null,{"$f":"HLOOKUP($E$17,'data HIDE'!$C$1:$J$13,11,FALSE)","v":67.5}]
[null,"Reseed Machinery Costs ($/ac)",null,null,16.5]
[null,"Estimated Gross Revenue ($/ac)",null,null,{"$f":"((((E38*E20)+E39+E40))-(E41+E42))","v":657.05165759999988}]
[null,"  (net reseeding indemnity, reimbursements & expenses)"]
[]
["Estimated Benefit (Cost) of Reseed Decision ($/ac)",null,null,null,{"$f":"((((E38*E20)+E39+E40))-(E41+E42))-E33","v":225.59205759999992}]
[]
[{"$f":"\"Reseed Decision - \"&IF(E46>0,'data HIDE'!N16,'data HIDE'!N15)","v":"Reseed Decision - Likely Beneficial to Reseed"}]
[]
["Note: This decision tool contains general information only and does not form part of the AgriInsurance Contract between an insured and MASC. In all cases, the AgriInsurance Contract shall prevail.   This decision tool is only a guide and is not intended to be an in-depth study of the cost of production of this industry. Interpretation and utilization of this information is the responsibility of the user. No liability for decisions based on this publication is assumed. "]
[]
[null,null,null,null,null,"February, 2022"]
[]
[]
[]
[]
[]
[null,null,null,null,"Carl - Ignore this block"]
[]
[null,"4th week April",0,"Soils",{"$f":"HLOOKUP($E$12,'data HIDE'!$C$1:$J$13,10,FALSE)","v":15.88},null,"orig crop price"]
[null,"1st week May ",0.5,"A"]
[null,"2nd week May",0.7,"B",{"$f":"IF($E$17=\"soybeans\",\"-\",1)","v":1}]
[null,"3rd week May",0.8,"C",{"$f":"IF($E$17=\"soybeans\",HLOOKUP('reseed calculator'!$E$8,'data HIDE'!$C$80:$R$81,2,FALSE),\"-\")","v":"-"},null,"reseed crop price"]
[null,"4th week May",null,"D",{"$f":"HLOOKUP($E$17,'data HIDE'!$C$1:$J$13,10,FALSE)","v":15.88}]
[null,"1st week June",null,"E"]
[null,"2nd week June",null,"F",0,null,"reseed"]
[null,"3rd week June",null,"G",{"$f":"HLOOKUP($E$17,'data HIDE'!$C$1:$J$13,11,FALSE)","v":67.5}]
[null,null,null,"H",16.5]
[null,null,null,"I"]
[null,null,null,"J"]
[]
[]
[null,"Original Crop","Risk Area #1"]
[null,"Canola","Risk Area #2"]
[null,"Wheat - Winter","Risk Area #3"]
[null,"Wheat - Hard Red Spring","Risk Area #4"]
[null,"Wheat - Northern Hard Red","Risk Area #5"]
[null,"Barley","Risk Area #6"]
[null,"Oats","Risk Area #7"]
[null,null,"Risk Area #8"]
[null,null,"Risk Area #9"]
[null,"Reseed","Risk Area #10"]
[null,"Canola","Risk Area #11"]
[null,"Wheat - Hard Red Spring","Risk Area #12"]
[null,"Wheat - Northern Hard Red","Risk Area #12(32)"]
[null,"Barley","Risk Area #14"]
[null,"Oats","Risk Area #15"]
[null,"Soybeans","Risk Area #16"]

{"sheet":"data HIDE","index":1,"n_rows":430,"n_cols":27,"rows_kept":430,"cut":false,"hidden":true,"merged":[]}
["Yield date factor table",null,"Canola","Wheat - Hard Red Spring","Wheat - Northern Hard Red","Wheat - Special Purpose","Barley","Oats","Soybeans","Wheat - Winter",null,"soils","row#","Canola","Wheat - Hard Red Spring","Wheat - Northern Hard Red","Wheat - Special Purpose","Barley","Oats","Soybeans","Wheat - Winter"]
["4th week April",2,1.0891,1.1476,0.97209999999999996,0.97209999999999996,1.0899000000000001,1.1478999999999999,1,null,null,"a",2,2,14,26,26,50,74,62,38,null,null,null,null,null,"??? Hide prevous and indemnitty, show counts"]
["1st week May ",3,1.0780000000000001,1.0686,1.0592999999999999,1.0592999999999999,1.1413,1.1404000000000001,1.07,null,null,"b",3,3,15,27,27,51,75,63,39,null,null,null,null,null,"date"]
["2nd week May",4,1.0501,0.99580000000000002,0.98780000000000001,0.98780000000000001,1.0482,1.0513999999999999,1.07,null,null,"c",4,4,16,28,28,52,76,64,40,null,null,null,null,null,"previous crop factor"]
["3rd week May",5,1.0334000000000001,0.90639999999999998,0.91969999999999996,0.91969999999999996,0.95179999999999998,0.93459999999999999,1.0058,null,null,"d",5,5,17,29,29,53,77,65,41]
["4th week May",6,0.97489999999999999,0.82330000000000003,0.89700000000000002,0.89700000000000002,0.86360000000000003,0.85529999999999995,0.89800000000000002,null,null,"e",6,6,18,30,30,54,78,66,42]
["1st week June",7,0.91639999999999999,0.75470000000000004,0.72950000000000004,0.72950000000000004,0.75439999999999996,0.7631,0.86299999999999999,null,null,"f",7,7,19,31,31,55,79,67,43,null,null,null,null,null,"Add seeding date data and previous crop rotation data into CopPlan!!"]
["2nd week June",8,0.8357,0.64859999999999995,0.66839999999999999,0.66839999999999999,0.65490000000000004,0.64949999999999997,0,null,null,"g",8,8,20,32,32,56,80,68,44]
["3rd week June",9,0.75490000000000002,0.57799999999999996,0.57799999999999996,0.57799999999999996,0.5746,0.5413,0,null,null,"H",9,9,21,33,33,57,81,69,45]
["AgriInsurance Price (MASC)",null,15.88,9.5299999999999994,8.57,7.35,6.53,5.63,13.06,8.7100000000000009,null,"i",10,10,22,34,34,58,82,70,46]
["Reseed Costs (Crop COP)",null,67.5,32.5,32.5,32.5,28,35,97.1,null,null,"j",11,11,23,35,35,59,83,71,47]
["Tillering Factor (MASC claim form)",null,null,3,3,3,4,1.5,3,3]
["Tillers to bu/ac Factor (MASC)",null,1,6.8000000000000005E-2,6.8000000000000005E-2,6.8000000000000005E-2,9.2999999999999999E-2,0.27900000000000003,6.8000000000000005E-2,6.8000000000000005E-2]
["Column Lookup - row number",null,3,4,5,6,7,8,9,10]
[null,null,null,null,null,null,null,null,null,null,null,null,null,"Likely Not Beneficial to Reseed"]
["canola on canola stubble yield ",null,0.86,null,null,null,null,null,null,null,null,null,null,"Likely Beneficial to Reseed"]
[]
[]
[null,null,"***all probable yields are for 'D' Soils***",null,null,null,null,null,null,null,null,null,null,null,null,null,null,null,null,null,"Canola"]
[null,null,"Risk Area #1","Risk Area #2","Risk Area #3","Risk Area #4","Risk Area #5","Risk Area #6","Risk Area #7","Risk Area #8","Risk Area #9","Risk Area #10","Risk Area #11","Risk Area #12","Risk Area #12(32)","Risk Area #14","Risk Area #15","Risk Area #16",null,null,"plants/m2","factor"]
["Canola","a",null,null,null,null,null,null,null,null,null,null,null,null,null,null,null,null,null,null,0,0]
[null,"b",null,null,null,null,null,null,null,null,null,null,null,null,null,null,null,null,null,null,0.1,0]
[null,"c",null,null,null,null,null,null,null,null,null,null,null,null,null,null,null,null,null,null,0.2,0]
[null,"d",37.5,41.8,39.6,43.2,47.1,42.7,42.3,45.6,44.7,45.4,42.3,49.2,45.9,40.5,38.700000000000003,25.5,null,null,0.3,0]
[null,"e",null,null,null,null,null,null,null,null,null,null,null,null,null,null,null,null,null,null,0.4,0]
[null,"f",null,null,null,null,null,null,null,null,null,null,null,null,null,null,null,null,null,null,0.5,0]
[null,"g",null,null,null,null,null,null,null,null,null,null,null,null,null,null,null,null,null,null,0.6,0]
[null,"H",null,null,null,null,null,null,null,null,null,null,null,null,null,null,null,null,null,null,0.7,0]
[null,"i",null,null,null,null,null,null,null,null,null,null,null,null,null,null,null,null,null,null,0.8,0]
[null,"j",null,null,null,null,null,null,null,null,null,null,null,null,null,null,null,null,null,null,0.9,0]
[null,null,null,null,null,null,null,null,null,null,null,null,null,null,null,null,null,null,null,null,1,0]
[null,null,"Risk Area #1","Risk Area #2","Risk Area #3","Risk Area #4","Risk Area #5","Risk Area #6","Risk Area #7","Risk Area #8","Risk Area #9","Risk Area #10","Risk Area #11","Risk Area #12","Risk Area #12(32)","Risk Area #14","Risk Area #15","Risk Area #16",null,null,1.1000000000000001,0]
["Wheat - Hard Red Spring","a",null,null,null,null,null,null,null,null,null,null,null,null,null,null,null,null,null,null,1.2,0]
[null,"b",null,null,null,null,null,null,null,null,null,null,null,null,null,null,null,null,null,null,1.3,0]
[null,"c",null,null,null,null,null,null,null,null,null,null,null,null,null,null,null,null,null,null,1.4,0]
[null,"d",54.7,59.1,56.5,60.2,65.8,59,59.2,64,59.8,62.7,63.3,70.400000000000006,66.7,59.8,57.2,40.700000000000003,null,null,1.5,0]
[null,"e",null,null,null,null,null,null,null,null,null,null,null,null,null,null,null,null,null,null,1.6,0]
[null,"f",null,null,null,null,null,null,null,null,null,null,null,null,null,null,null,null,null,null,1.7,0]
[null,"g",null,null,null,null,null,null,null,null,null,null,null,null,null,null,null,null,null,null,1.8,0]
[null,"H",null,null,null,null,null,null,null,null,null,null,null,null,null,null,null,null,null,null,1.9,0]
[null,"i",null,null,null,null,null,null,null,null,null,null,null,null,null,null,null,null,null,null,2,0.15]
[null,"j",null,null,null,null,null,null,null,null,null,null,null,null,null,null,null,null,null,null,2.1,0.15]
[null,null,null,null,null,null,null,null,null,null,null,null,null,null,null,null,null,null,null,null,2.2000000000000002,0.15]
[null,null,"Risk Area #1","Risk Area #2","Risk Area #3","Risk Area #4","Risk Area #5","Risk Area #6","Risk Area #7","Risk Area #8","Risk Area #9","Risk Area #10","Risk Area #11","Risk Area #12","Risk Area #12(32)","Risk Area #14","Risk Area #15","Risk Area #16",null,null,2.2999999999999998,0.15]
["Wheat - NHR","a",null,null,null,null,null,null,null,null,null,null,null,null,null,null,null,null,null,null,2.4,0.15]
[null,"b",null,null,null,null,null,null,null,null,null,null,null,null,null,null,null,null,null,null,2.5,0.15]
[null,"c",null,null,null,null,null,null,null,null,null,null,null,null,null,null,null,null,null,null,2.6,0.15]
[null,"d",60.1,65.400000000000006,62,66.599999999999994,72.8,65.3,65.3,70.3,65.7,69.400000000000006,69.400000000000006,78.099999999999994,73.2,61.5,60.8,45,null,null,2.7,0.15]
[null,"e",null,null,null,null,null,null,null,null,null,null,null,null,null,null,null,null,null,null,2.8,0.15]
[null,"f",null,null,null,null,null,null,null,null,null,null,null,null,null,null,null,null,null,null,2.9,0.15]
[null,"g",null,null,null,null,null,null,null,null,null,null,null,null,null,null,null,null,null,null,3,0.3]
[null,"H",null,null,null,null,null,null,null,null,null,null,null,null,null,null,null,null,null,null,3.1,0.3]
[null,"i",null,null,null,null,null,null,null,null,null,null,null,null,null,null,null,null,null,null,3.2,0.3]
[null,"j",null,null,null,null,null,null,null,null,null,null,null,null,null,null,null,null,null,null,3.3,0.3]
[null,null,null,null,null,null,null,null,null,null,null,null,null,null,null,null,null,null,null,null,3.4,0.3]
[null,null,"Risk Area #1","Risk Area #2","Risk Area #3","Risk Area #4","Risk Area #5","Risk Area #6","Risk Area #7","Risk Area #8","Risk Area #9","Risk Area #10","Risk Area #11","Risk Area #12","Risk Area #12(32)","Risk Area #14","Risk Area #15","Risk Area #16",null,null,3.5,0.3]
["Wheat - Winter","a",null,null,null,null,null,null,null,null,null,null,null,null,null,null,null,null,null,null,3.6,0.3]
[null,"b",null,null,null,null,null,null,null,null,null,null,null,null,null,null,null,null,null,null,3.7,0.3]
[null,"c",null,null,null,null,null,null,null,null,null,null,null,null,null,null,null,null,null,null,3.8,0.3]
[null,"d",56.5,61,58.3,62.1,68,61,61.1,66.2,61.8,64.7,65.400000000000006,72.900000000000006,68.900000000000006,57.8,57.2,43.4,null,null,3.9,0.3]
[null,"e",null,null,null,null,null,null,null,null,null,null,null,null,null,null,null,null,null,null,4,0.4]
[null,"f",null,null,null,null,null,null,null,null,null,null,null,null,null,null,null,null,null,null,4.0999999999999996,0.4]
[null,"g",null,null,null,null,null,null,null,null,null,null,null,null,null,null,null,null,null,null,4.2,0.4]
[null,"H",null,null,null,null,null,null,null,null,null,null,null,null,null,null,null,null,null,null,4.3,0.4]
[null,"i",null,null,null,null,null,null,null,null,null,null,null,null,null,null,null,null,null,null,4.4000000000000004,0.4]
[null,"j",null,null,null,null,null,null,null,null,null,null,null,null,null,null,null,null,null,null,4.5,0.4]
[null,null,null,null,null,null,null,null,null,null,null,null,null,null,null,null,null,null,null,null,4.5999999999999996,0.4]
[null,null,"Risk Area #1","Risk Area #2","Risk Area #3","Risk Area #4","Risk Area #5","Risk Area #6","Risk Area #7","Risk Area #8","Risk Area #9","Risk Area #10","Risk Area #11","Risk Area #12","Risk Area #12(32)","Risk Area #14","Risk Area #15","Risk Area #16",null,null,4.7,0.4]
["Barley","a",null,null,null,null,null,null,null,null,null,null,null,null,null,null,null,null,null,null,4.8,0.4]
[null,"b",null,null,null,null,null,null,null,null,null,null,null,null,null,null,null,null,null,null,4.9000000000000004,0.4]
[null,"c",null,null,null,null,null,null,null,null,null,null,null,null,null,null,null,null,null,null,5,0.55000000000000004]
[null,"d",55.9,73.2,62.3,67.8,80.8,68.099999999999994,70.400000000000006,63.1,67.5,66.099999999999994,78,83.2,81.8,69.2,65,37.5,null,null,5.0999999999999996,0.55000000000000004]
[null,"e",null,null,null,null,null,null,null,null,null,null,null,null,null,null,null,null,null,null,5.2,0.55000000000000004]
[null,"f",null,null,null,null,null,null,null,null,null,null,null,null,null,null,null,null,null,null,5.3,0.55000000000000004]
[null,"g",null,null,null,null,null,null,null,null,null,null,null,null,null,null,null,null,null,null,5.4,0.55000000000000004]
[null,"H",null,null,null,null,null,null,null,null,null,null,null,null,null,null,null,null,null,null,5.5,0.55000000000000004]
[null,"i",null,null,null,null,null,null,null,null,null,null,null,null,null,null,null,null,null,null,5.6,0.55000000000000004]
[null,"j",null,null,null,null,null,null,null,null,null,null,null,null,null,null,null,null,null,null,5.7,0.55000000000000004]
[null,null,null,null,null,null,null,null,null,null,null,null,null,null,null,null,null,null,null,null,5.8,0.55000000000000004]
[null,null,"Risk Area #1","Risk Area #2","Risk Area #3","Risk Area #4","Risk Area #5","Risk Area #6","Risk Area #7","Risk Area #8","Risk Area #9","Risk Area #10","Risk Area #11","Risk Area #12","Risk Area #12(32)","Risk Area #14","Risk Area #15","Risk Area #16",null,null,5.9,0.55000000000000004]
["Soybeans","a",null,null,null,null,null,null,null,null,null,null,null,null,null,null,null,null,null,null,6,0.55000000000000004]
[null,"b",null,null,null,null,null,null,null,null,null,null,null,null,null,null,null,null,null,null,6.1,0.55000000000000004]
[null,"c",null,null,null,null,null,null,null,null,null,null,null,null,null,null,null,null,null,null,6.2,0.55000000000000004]
[null,"d",36,36,36,37.799999999999997,37.799999999999997,35.6,35.6,35.6,36,36,37.799999999999997,38.6,37.799999999999997,37.799999999999997,37.799999999999997,35.6,null,null,6.3,0.55000000000000004]
[null,"e",null,null,null,null,null,null,null,null,null,null,null,null,null,null,null,null,null,null,6.4,0.55000000000000004]
[null,"f",null,null,null,null,null,null,null,null,null,null,null,null,null,null,null,null,null,null,6.5,0.55000000000000004]
[null,"g",null,null,null,null,null,null,null,null,null,null,null,null,null,null,null,null,null,null,6.6,0.55000000000000004]
[null,"H",null,null,null,null,null,null,null,null,null,null,null,null,null,null,null,null,null,null,6.7,0.55000000000000004]
[null,"i",null,null,null,null,null,null,null,null,null,null,null,null,null,null,null,null,null,null,6.8,0.55000000000000004]
[null,"j",null,null,null,null,null,null,null,null,null,null,null,null,null,null,null,null,null,null,6.9,0.55000000000000004]
[null,null,null,null,null,null,null,null,null,null,null,null,null,null,null,null,null,null,null,null,7,0.6]
[null,null,"Risk Area #1","Risk Area #2","Risk Area #3","Risk Area #4","Risk Area #5","Risk Area #6","Risk Area #7","Risk Area #8","Risk Area #9","Risk Area #10","Risk Area #11","Risk Area #12","Risk Area #12(32)","Risk Area #14","Risk Area #15","Risk Area #16",null,null,7.1,0.6]
["Oats","a",null,null,null,null,null,null,null,null,null,null,null,null,null,null,null,null,null,null,7.2,0.6]
[null,"b",null,null,null,null,null,null,null,null,null,null,null,null,null,null,null,null,null,null,7.3,0.6]
[null,"c",null,null,null,null,null,null,null,null,null,null,null,null,null,null,null,null,null,null,7.4,0.6]
[null,"d",101.9,113.5,87.1,96,126.2,97.7,103.9,95.4,109.7,112.8,116.7,142,131.69999999999999,109.9,108.4,50.5,null,null,7.5,0.6]
[null,"e",null,null,null,null,null,null,null,null,null,null,null,null,null,null,null,null,null,null,7.6,0.6]
[null,"f",null,null,null,null,null,null,null,null,null,null,null,null,null,null,null,null,null,null,7.7,0.6]
[null,"g",null,null,null,null,null,null,null,null,null,null,null,null,null,null,null,null,null,null,7.8,0.6]
[null,"H",null,null,null,null,null,null,null,null,null,null,null,null,null,null,null,null,null,null,7.9,0.6]
[null,"i",null,null,null,null,null,null,null,null,null,null,null,null,null,null,null,null,null,null,8,0.6]
[null,"j",null,null,null,null,null,null,null,null,null,null,null,null,null,null,null,null,null,null,8.1,0.6]
[null,null,null,null,null,null,null,null,null,null,null,null,null,null,null,null,null,null,null,null,8.1999999999999993,0.6]
[null,null,null,null,null,null,null,null,null,null,null,null,null,null,null,null,null,null,null,null,8.3000000000000007,0.6]
[null,null,null,null,null,null,null,null,null,null,null,null,null,null,null,null,null,null,null,null,8.4,0.6]
[null,null,null,null,null,null,null,null,null,null,null,null,null,null,null,null,null,null,null,null,8.5,0.6]
[null,null,null,null,null,null,null,null,null,null,null,null,null,null,null,null,null,null,null,null,8.6,0.6]
[null,null,null,null,null,null,null,null,null,null,null,null,null,null,null,null,null,null,null,null,8.6999999999999993,0.6]
[null,null,null,null,null,null,null,null,null,null,null,null,null,null,null,null,null,null,null,null,8.8000000000000007,0.6]
[null,null,null,null,null,null,null,null,null,null,null,null,null,null,null,null,null,null,null,null,8.9,0.6]
[null,null,null,null,null,null,null,null,null,null,null,null,null,null,null,null,null,null,null,null,9,0.6]
[null,null,null,null,null,null,null,null,null,null,null,null,null,null,null,null,null,null,null,null,9.1,0.6]
[null,null,null,null,null,null,null,null,null,null,null,null,null,null,null,null,null,null,null,null,9.1999999999999993,0.6]
[null,null,null,null,null,null,null,null,null,null,null,null,null,null,null,null,null,null,null,null,9.3000000000000007,0.6]
[null,null,null,null,null,null,null,null,null,null,null,null,null,null,null,null,null,null,null,null,9.4,0.6]
[null,null,null,null,null,null,null,null,null,null,null,null,null,null,null,null,null,null,null,null,9.5,0.6]
[null,null,null,null,null,null,null,null,null,null,null,null,null,null,null,null,null,null,null,null,9.6,0.6]
[null,null,null,null,null,null,null,null,null,null,null,null,null,null,null,null,null,null,null,null,9.6999999999999993,0.6]
[null,null,null,null,null,null,null,null,null,null,null,null,null,null,null,null,null,null,null,null,9.8000000000000007,0.6]
[null,null,null,null,null,null,null,null,null,null,null,null,null,null,null,null,null,null,null,null,9.9,0.6]
[null,null,null,null,null,null,null,null,null,null,null,null,null,null,null,null,null,null,null,null,10,0.65]
[null,null,null,null,null,null,null,null,null,null,null,null,null,null,null,null,null,null,null,null,10.1,0.65]
[null,null,null,null,null,null,null,null,null,null,null,null,null,null,null,null,null,null,null,null,10.199999999999999,0.65]
[null,null,null,null,null,null,null,null,null,null,null,null,null,null,null,null,null,null,null,null,10.3,0.65]
[null,null,null,null,null,null,null,null,null,null,null,null,null,null,null,null,null,null,null,null,10.4,0.65]
[null,null,null,null,null,null,null,null,null,null,null,null,null,null,null,null,null,null,null,null,10.5,0.65]
[null,null,null,null,null,null,null,null,null,null,null,null,null,null,null,null,null,null,null,null,10.6,0.65]
[null,null,null,null,null,null,null,null,null,null,null,null,null,null,null,null,null,null,null,null,10.7,0.65]
[null,null,null,null,null,null,null,null,null,null,null,null,null,null,null,null,null,null,null,null,10.8,0.65]
[null,null,null,null,null,null,null,null,null,null,null,null,null,null,null,null,null,null,null,null,10.9,0.65]
[null,null,null,null,null,null,null,null,null,null,null,null,null,null,null,null,null,null,null,null,11,0.65]
[null,null,null,null,null,null,null,null,null,null,null,null,null,null,null,null,null,null,null,null,11.1,0.65]
[null,null,null,null,null,null,null,null,null,null,null,null,null,null,null,null,null,null,null,null,11.2,0.65]
[null,null,null,null,null,null,null,null,null,null,null,null,null,null,null,null,null,null,null,null,11.3,0.65]
[null,null,null,null,null,null,null,null,null,null,null,null,null,null,null,null,null,null,null,null,11.4,0.65]
[null,null,null,null,null,null,null,null,null,null,null,null,null,null,null,null,null,null,null,null,11.5,0.65]
[null,null,null,null,null,null,null,null,null,null,null,null,null,null,null,null,null,null,null,null,11.6,0.65]
[null,null,null,null,null,null,null,null,null,null,null,null,null,null,null,null,null,null,null,null,11.7,0.65]
[null,null,null,null,null,null,null,null,null,null,null,null,null,null,null,null,null,null,null,null,11.8,0.65]
[null,null,null,null,null,null,null,null,null,null,null,null,null,null,null,null,null,null,null,null,11.9,0.65]
[null,null,null,null,null,null,null,null,null,null,null,null,null,null,null,null,null,null,null,null,12,0.65]
[null,null,null,null,null,null,null,null,null,null,null,null,null,null,null,null,null,null,null,null,12.1,0.65]
[null,null,null,null,null,null,null,null,null,null,null,null,null,null,null,null,null,null,null,null,12.2,0.65]
[null,null,null,null,null,null,null,null,null,null,null,null,null,null,null,null,null,null,null,null,12.3,0.65]
[null,null,null,null,null,null,null,null,null,null,null,null,null,null,null,null,null,null,null,null,12.4,0.65]
[null,null,null,null,null,null,null,null,null,null,null,null,null,null,null,null,null,null,null,null,12.5,0.65]
[null,null,null,null,null,null,null,null,null,null,null,null,null,null,null,null,null,null,null,null,12.6,0.65]
[null,null,null,null,null,null,null,null,null,null,null,null,null,null,null,null,null,null,null,null,12.7,0.65]
[null,null,null,null,null,null,null,null,null,null,null,null,null,null,null,null,null,null,null,null,12.8,0.65]
[null,null,null,null,null,null,null,null,null,null,null,null,null,null,null,null,null,null,null,null,12.9,0.65]
[null,null,null,null,null,null,null,null,null,null,null,null,null,null,null,null,null,null,null,null,13,0.75]
[null,null,null,null,null,null,null,null,null,null,null,null,null,null,null,null,null,null,null,null,13.1,0.75]
[null,null,null,null,null,null,null,null,null,null,null,null,null,null,null,null,null,null,null,null,13.2,0.75]
[null,null,null,null,null,null,null,null,null,null,null,null,null,null,null,null,null,null,null,null,13.3,0.75]
[null,null,null,null,null,null,null,null,null,null,null,null,null,null,null,null,null,null,null,null,13.4,0.75]
[null,null,null,null,null,null,null,null,null,null,null,null,null,null,null,null,null,null,null,null,13.5,0.75]
[null,null,null,null,null,null,null,null,null,null,null,null,null,null,null,null,null,null,null,null,13.6,0.75]
[null,null,null,null,null,null,null,null,null,null,null,null,null,null,null,null,null,null,null,null,13.7,0.75]
[null,null,null,null,null,null,null,null,null,null,null,null,null,null,null,null,null,null,null,null,13.8,0.75]
[null,null,null,null,null,null,null,null,null,null,null,null,null,null,null,null,null,null,null,null,13.9,0.75]
[null,null,null,null,null,null,null,null,null,null,null,null,null,null,null,null,null,null,null,null,14,0.75]
[null,null,null,null,null,null,null,null,null,null,null,null,null,null,null,null,null,null,null,null,14.1,0.75]
[null,null,null,null,null,null,null,null,null,null,null,null,null,null,null,null,null,null,null,null,14.2,0.75]
[null,null,null,null,null,null,null,null,null,null,null,null,null,null,null,null,null,null,null,null,14.3,0.75]
[null,null,null,null,null,null,null,null,null,null,null,null,null,null,null,null,null,null,null,null,14.4,0.75]
[null,null,null,null,null,null,null,null,null,null,null,null,null,null,null,null,null,null,null,null,14.5,0.75]
[null,null,null,null,null,null,null,null,null,null,null,null,null,null,null,null,null,null,null,null,14.6,0.75]
[null,null,null,null,null,null,null,null,null,null,null,null,null,null,null,null,null,null,null,null,14.7,0.75]
[null,null,null,null,null,null,null,null,null,null,null,null,null,null,null,null,null,null,null,null,14.8,0.75]
[null,null,null,null,null,null,null,null,null,null,null,null,null,null,null,null,null,null,null,null,14.9,0.75]
[null,null,null,null,null,null,null,null,null,null,null,null,null,null,null,null,null,null,null,null,15,0.75]
[null,null,null,null,null,null,null,null,null,null,null,null,null,null,null,null,null,null,null,null,15.1,0.75]
[null,null,null,null,null,null,null,null,null,null,null,null,null,null,null,null,null,null,null,null,15.2,0.75]
[null,null,null,null,null,null,null,null,null,null,null,null,null,null,null,null,null,null,null,null,15.3,0.75]
[null,null,null,null,null,null,null,null,null,null,null,null,null,null,null,null,null,null,null,null,15.4,0.75]
[null,null,null,null,null,null,null,null,null,null,null,null,null,null,null,null,null,null,null,null,15.5,0.75]
[null,null,null,null,null,null,null,null,null,null,null,null,null,null,null,null,null,null,null,null,15.6,0.75]
[null,null,null,null,null,null,null,null,null,null,null,null,null,null,null,null,null,null,null,null,15.7,0.75]
[null,null,null,null,null,null,null,null,null,null,null,null,null,null,null,null,null,null,null,null,15.8,0.75]
[null,null,null,null,null,null,null,null,null,null,null,null,null,null,null,null,null,null,null,null,15.9,0.75]
[null,null,null,null,null,null,null,null,null,null,null,null,null,null,null,null,null,null,null,null,16,0.8]
[null,null,null,null,null,null,null,null,null,null,null,null,null,null,null,null,null,null,null,null,16.100000000000001,0.8]
[null,null,null,null,null,null,null,null,null,null,null,null,null,null,null,null,null,null,null,null,16.2,0.8]
[null,null,null,null,null,null,null,null,null,null,null,null,null,null,null,null,null,null,null,null,16.3,0.8]
[null,null,null,null,null,null,null,null,null,null,null,null,null,null,null,null,null,null,null,null,16.399999999999999,0.8]
[null,null,null,null,null,null,null,null,null,null,null,null,null,null,null,null,null,null,null,null,16.5,0.8]
[null,null,null,null,null,null,null,null,null,null,null,null,null,null,null,null,null,null,null,null,16.600000000000001,0.8]
[null,null,null,null,null,null,null,null,null,null,null,null,null,null,null,null,null,null,null,null,16.7,0.8]
[null,null,null,null,null,null,null,null,null,null,null,null,null,null,null,null,null,null,null,null,16.8,0.8]
[null,null,null,null,null,null,null,null,null,null,null,null,null,null,null,null,null,null,null,null,16.899999999999999,0.8]
[null,null,null,null,null,null,null,null,null,null,null,null,null,null,null,null,null,null,null,null,17,0.8]
[null,null,null,null,null,null,null,null,null,null,null,null,null,null,null,null,null,null,null,null,17.100000000000001,0.8]
[null,null,null,null,null,null,null,null,null,null,null,null,null,null,null,null,null,null,null,null,17.2,0.8]
[null,null,null,null,null,null,null,null,null,null,null,null,null,null,null,null,null,null,null,null,17.3,0.8]
[null,null,null,null,null,null,null,null,null,null,null,null,null,null,null,null,null,null,null,null,17.399999999999999,0.8]
[null,null,null,null,null,null,null,null,null,null,null,null,null,null,null,null,null,null,null,null,17.5,0.8]
[null,null,null,null,null,null,null,null,null,null,null,null,null,null,null,null,null,null,null,null,17.600000000000001,0.8]
[null,null,null,null,null,null,null,null,null,null,null,null,null,null,null,null,null,null,null,null,17.7,0.8]
[null,null,null,null,null,null,null,null,null,null,null,null,null,null,null,null,null,null,null,null,17.8,0.8]
[null,null,null,null,null,null,null,null,null,null,null,null,null,null,null,null,null,null,null,null,17.899999999999999,0.8]
[null,null,null,null,null,null,null,null,null,null,null,null,null,null,null,null,null,null,null,null,18,0.8]
[null,null,null,null,null,null,null,null,null,null,null,null,null,null,null,null,null,null,null,null,18.100000000000001,0.8]
[null,null,null,null,null,null,null,null,null,null,null,null,null,null,null,null,null,null,null,null,18.2,0.8]
[null,null,null,null,null,null,null,null,null,null,null,null,null,null,null,null,null,null,null,null,18.3,0.8]
[null,null,null,null,null,null,null,null,null,null,null,null,null,null,null,null,null,null,null,null,18.399999999999999,0.8]
[null,null,null,null,null,null,null,null,null,null,null,null,null,null,null,null,null,null,null,null,18.5,0.8]
[null,null,null,null,null,null,null,null,null,null,null,null,null,null,null,null,null,null,null,null,18.600000000000001,0.8]
[null,null,null,null,null,null,null,null,null,null,null,null,null,null,null,null,null,null,null,null,18.7,0.8]
[null,null,null,null,null,null,null,null,null,null,null,null,null,null,null,null,null,null,null,null,18.8,0.8]
[null,null,null,null,null,null,null,null,null,null,null,null,null,null,null,null,null,null,null,null,18.899999999999999,0.8]
[null,null,null,null,null,null,null,null,null,null,null,null,null,null,null,null,null,null,null,null,19,0.8]
[null,null,null,null,null,null,null,null,null,null,null,null,null,null,null,null,null,null,null,null,19.100000000000001,0.8]
[null,null,null,null,null,null,null,null,null,null,null,null,null,null,null,null,null,null,null,null,19.2,0.8]
[null,null,null,null,null,null,null,null,null,null,null,null,null,null,null,null,null,null,null,null,19.3,0.8]
[null,null,null,null,null,null,null,null,null,null,null,null,null,null,null,null,null,null,null,null,19.399999999999999,0.8]
[null,null,null,null,null,null,null,null,null,null,null,null,null,null,null,null,null,null,null,null,19.5,0.8]
[null,null,null,null,null,null,null,null,null,null,null,null,null,null,null,null,null,null,null,null,19.600000000000001,0.8]
[null,null,null,null,null,null,null,null,null,null,null,null,null,null,null,null,null,null,null,null,19.7,0.8]
[null,null,null,null,null,null,null,null,null,null,null,null,null,null,null,null,null,null,null,null,19.8,0.8]
[null,null,null,null,null,null,null,null,null,null,null,null,null,null,null,null,null,null,null,null,19.899999999999999,0.8]
[null,null,null,null,null,null,null,null,null,null,null,null,null,null,null,null,null,null,null,null,20,0.8]
[null,null,null,null,null,null,null,null,null,null,null,null,null,null,null,null,null,null,null,null,20.100000000000001,0.8]
[null,null,null,null,null,null,null,null,null,null,null,null,null,null,null,null,null,null,null,null,20.2,0.8]
[null,null,null,null,null,null,null,null,null,null,null,null,null,null,null,null,null,null,null,null,20.3,0.8]
[null,null,null,null,null,null,null,null,null,null,null,null,null,null,null,null,null,null,null,null,20.399999999999999,0.8]
[null,null,null,null,null,null,null,null,null,null,null,null,null,null,null,null,null,null,null,null,20.5,0.8]
[null,null,null,null,null,null,null,null,null,null,null,null,null,null,null,null,null,null,null,null,20.6,0.8]
[null,null,null,null,null,null,null,null,null,null,null,null,null,null,null,null,null,null,null,null,20.7,0.8]
[null,null,null,null,null,null,null,null,null,null,null,null,null,null,null,null,null,null,null,null,20.8,0.8]
[null,null,null,null,null,null,null,null,null,null,null,null,null,null,null,null,null,null,null,null,20.9,0.8]
[null,null,null,null,null,null,null,null,null,null,null,null,null,null,null,null,null,null,null,null,21,0.85]
[null,null,null,null,null,null,null,null,null,null,null,null,null,null,null,null,null,null,null,null,21.1,0.85]
[null,null,null,null,null,null,null,null,null,null,null,null,null,null,null,null,null,null,null,null,21.2,0.85]
[null,null,null,null,null,null,null,null,null,null,null,null,null,null,null,null,null,null,null,null,21.3,0.85]
[null,null,null,null,null,null,null,null,null,null,null,null,null,null,null,null,null,null,null,null,21.4,0.85]
[null,null,null,null,null,null,null,null,null,null,null,null,null,null,null,null,null,null,null,null,21.5,0.85]
[null,null,null,null,null,null,null,null,null,null,null,null,null,null,null,null,null,null,null,null,21.6,0.85]
[null,null,null,null,null,null,null,null,null,null,null,null,null,null,null,null,null,null,null,null,21.7,0.85]
[null,null,null,null,null,null,null,null,null,null,null,null,null,null,null,null,null,null,null,null,21.8,0.85]
[null,null,null,null,null,null,null,null,null,null,null,null,null,null,null,null,null,null,null,null,21.9,0.85]
[null,null,null,null,null,null,null,null,null,null,null,null,null,null,null,null,null,null,null,null,22,0.85]
[null,null,null,null,null,null,null,null,null,null,null,null,null,null,null,null,null,null,null,null,22.1,0.85]
[null,null,null,null,null,null,null,null,null,null,null,null,null,null,null,null,null,null,null,null,22.2,0.85]
[null,null,null,null,null,null,null,null,null,null,null,null,null,null,null,null,null,null,null,null,22.3,0.85]
[null,null,null,null,null,null,null,null,null,null,null,null,null,null,null,null,null,null,null,null,22.4,0.85]
[null,null,null,null,null,null,null,null,null,null,null,null,null,null,null,null,null,null,null,null,22.5,0.85]
[null,null,null,null,null,null,null,null,null,null,null,null,null,null,null,null,null,null,null,null,22.6,0.85]
[null,null,null,null,null,null,null,null,null,null,null,null,null,null,null,null,null,null,null,null,22.7,0.85]
[null,null,null,null,null,null,null,null,null,null,null,null,null,null,null,null,null,null,null,null,22.8,0.85]
[null,null,null,null,null,null,null,null,null,null,null,null,null,null,null,null,null,null,null,null,22.9,0.85]
[null,null,null,null,null,null,null,null,null,null,null,null,null,null,null,null,null,null,null,null,23,0.85]
[null,null,null,null,null,null,null,null,null,null,null,null,null,null,null,null,null,null,null,null,23.1,0.85]
[null,null,null,null,null,null,null,null,null,null,null,null,null,null,null,null,null,null,null,null,23.2,0.85]
[null,null,null,null,null,null,null,null,null,null,null,null,null,null,null,null,null,null,null,null,23.3,0.85]
[null,null,null,null,null,null,null,null,null,null,null,null,null,null,null,null,null,null,null,null,23.4,0.85]
[null,null,null,null,null,null,null,null,null,null,null,null,null,null,null,null,null,null,null,null,23.5,0.85]
[null,null,null,null,null,null,null,null,null,null,null,null,null,null,null,null,null,null,null,null,23.6,0.85]
[null,null,null,null,null,null,null,null,null,null,null,null,null,null,null,null,null,null,null,null,23.7,0.85]
[null,null,null,null,null,null,null,null,null,null,null,null,null,null,null,null,null,null,null,null,23.8,0.85]
[null,null,null,null,null,null,null,null,null,null,null,null,null,null,null,null,null,null,null,null,23.9,0.85]
[null,null,null,null,null,null,null,null,null,null,null,null,null,null,null,null,null,null,null,null,24,0.85]
[null,null,null,null,null,null,null,null,null,null,null,null,null,null,null,null,null,null,null,null,24.1,0.85]
[null,null,null,null,null,null,null,null,null,null,null,null,null,null,null,null,null,null,null,null,24.2,0.85]
[null,null,null,null,null,null,null,null,null,null,null,null,null,null,null,null,null,null,null,null,24.3,0.85]
[null,null,null,null,null,null,null,null,null,null,null,null,null,null,null,null,null,null,null,null,24.4,0.85]
[null,null,null,null,null,null,null,null,null,null,null,null,null,null,null,null,null,null,null,null,24.5,0.85]
[null,null,null,null,null,null,null,null,null,null,null,null,null,null,null,null,null,null,null,null,24.6,0.85]
[null,null,null,null,null,null,null,null,null,null,null,null,null,null,null,null,null,null,null,null,24.7,0.85]
[null,null,null,null,null,null,null,null,null,null,null,null,null,null,null,null,null,null,null,null,24.8,0.85]
[null,null,null,null,null,null,null,null,null,null,null,null,null,null,null,null,null,null,null,null,24.9,0.85]
[null,null,null,null,null,null,null,null,null,null,null,null,null,null,null,null,null,null,null,null,25,0.85]
[null,null,null,null,null,null,null,null,null,null,null,null,null,null,null,null,null,null,null,null,25.1,0.85]
[null,null,null,null,null,null,null,null,null,null,null,null,null,null,null,null,null,null,null,null,25.2,0.85]
[null,null,null,null,null,null,null,null,null,null,null,null,null,null,null,null,null,null,null,null,25.3,0.85]
[null,null,null,null,null,null,null,null,null,null,null,null,null,null,null,null,null,null,null,null,25.4,0.85]
[null,null,null,null,null,null,null,null,null,null,null,null,null,null,null,null,null,null,null,null,25.5,0.85]
[null,null,null,null,null,null,null,null,null,null,null,null,null,null,null,null,null,null,null,null,25.6,0.85]
[null,null,null,null,null,null,null,null,null,null,null,null,null,null,null,null,null,null,null,null,25.7,0.85]
[null,null,null,null,null,null,null,null,null,null,null,null,null,null,null,null,null,null,null,null,25.8,0.85]
[null,null,null,null,null,null,null,null,null,null,null,null,null,null,null,null,null,null,null,null,25.9,0.85]
[null,null,null,null,null,null,null,null,null,null,null,null,null,null,null,null,null,null,null,null,26,0.85]
[null,null,null,null,null,null,null,null,null,null,null,null,null,null,null,null,null,null,null,null,26.1,0.85]
[null,null,null,null,null,null,null,null,null,null,null,null,null,null,null,null,null,null,null,null,26.2,0.85]
[null,null,null,null,null,null,null,null,null,null,null,null,null,null,null,null,null,null,null,null,26.3,0.85]
[null,null,null,null,null,null,null,null,null,null,null,null,null,null,null,null,null,null,null,null,26.4,0.85]
[null,null,null,null,null,null,null,null,null,null,null,null,null,null,null,null,null,null,null,null,26.5,0.85]
[null,null,null,null,null,null,null,null,null,null,null,null,null,null,null,null,null,null,null,null,26.6,0.85]
[null,null,null,null,null,null,null,null,null,null,null,null,null,null,null,null,null,null,null,null,26.7,0.85]
[null,null,null,null,null,null,null,null,null,null,null,null,null,null,null,null,null,null,null,null,26.8,0.85]
[null,null,null,null,null,null,null,null,null,null,null,null,null,null,null,null,null,null,null,null,26.9,0.85]
[null,null,null,null,null,null,null,null,null,null,null,null,null,null,null,null,null,null,null,null,27,0.85]
[null,null,null,null,null,null,null,null,null,null,null,null,null,null,null,null,null,null,null,null,27.1,0.85]
[null,null,null,null,null,null,null,null,null,null,null,null,null,null,null,null,null,null,null,null,27.2,0.85]
[null,null,null,null,null,null,null,null,null,null,null,null,null,null,null,null,null,null,null,null,27.3,0.85]
[null,null,null,null,null,null,null,null,null,null,null,null,null,null,null,null,null,null,null,null,27.4,0.85]
[null,null,null,null,null,null,null,null,null,null,null,null,null,null,null,null,null,null,null,null,27.5,0.85]
[null,null,null,null,null,null,null,null,null,null,null,null,null,null,null,null,null,null,null,null,27.6,0.85]
[null,null,null,null,null,null,null,null,null,null,null,null,null,null,null,null,null,null,null,null,27.7,0.85]
[null,null,null,null,null,null,null,null,null,null,null,null,null,null,null,null,null,null,null,null,27.8,0.85]
[null,null,null,null,null,null,null,null,null,null,null,null,null,null,null,null,null,null,null,null,27.9,0.85]
[null,null,null,null,null,null,null,null,null,null,null,null,null,null,null,null,null,null,null,null,28,0.85]
[null,null,null,null,null,null,null,null,null,null,null,null,null,null,null,null,null,null,null,null,28.1,0.85]
[null,null,null,null,null,null,null,null,null,null,null,null,null,null,null,null,null,null,null,null,28.2,0.85]
[null,null,null,null,null,null,null,null,null,null,null,null,null,null,null,null,null,null,null,null,28.3,0.85]
[null,null,null,null,null,null,null,null,null,null,null,null,null,null,null,null,null,null,null,null,28.4,0.85]
[null,null,null,null,null,null,null,null,null,null,null,null,null,null,null,null,null,null,null,null,28.5,0.85]
[null,null,null,null,null,null,null,null,null,null,null,null,null,null,null,null,null,null,null,null,28.6,0.85]
[null,null,null,null,null,null,null,null,null,null,null,null,null,null,null,null,null,null,null,null,28.7,0.85]
[null,null,null,null,null,null,null,null,null,null,null,null,null,null,null,null,null,null,null,null,28.8,0.85]
[null,null,null,null,null,null,null,null,null,null,null,null,null,null,null,null,null,null,null,null,28.9,0.85]
[null,null,null,null,null,null,null,null,null,null,null,null,null,null,null,null,null,null,null,null,29,0.85]
[null,null,null,null,null,null,null,null,null,null,null,null,null,null,null,null,null,null,null,null,29.1,0.85]
[null,null,null,null,null,null,null,null,null,null,null,null,null,null,null,null,null,null,null,null,29.2,0.85]
[null,null,null,null,null,null,null,null,null,null,null,null,null,null,null,null,null,null,null,null,29.3,0.85]
[null,null,null,null,null,null,null,null,null,null,null,null,null,null,null,null,null,null,null,null,29.4,0.85]
[null,null,null,null,null,null,null,null,null,null,null,null,null,null,null,null,null,null,null,null,29.5,0.85]
[null,null,null,null,null,null,null,null,null,null,null,null,null,null,null,null,null,null,null,null,29.6,0.85]
[null,null,null,null,null,null,null,null,null,null,null,null,null,null,null,null,null,null,null,null,29.7,0.85]
[null,null,null,null,null,null,null,null,null,null,null,null,null,null,null,null,null,null,null,null,29.8,0.85]
[null,null,null,null,null,null,null,null,null,null,null,null,null,null,null,null,null,null,null,null,29.9,0.85]
[null,null,null,null,null,null,null,null,null,null,null,null,null,null,null,null,null,null,null,null,30,0.85]
[null,null,null,null,null,null,null,null,null,null,null,null,null,null,null,null,null,null,null,null,30.1,0.85]
[null,null,null,null,null,null,null,null,null,null,null,null,null,null,null,null,null,null,null,null,30.2,0.85]
[null,null,null,null,null,null,null,null,null,null,null,null,null,null,null,null,null,null,null,null,30.3,0.85]
[null,null,null,null,null,null,null,null,null,null,null,null,null,null,null,null,null,null,null,null,30.4,0.85]
[null,null,null,null,null,null,null,null,null,null,null,null,null,null,null,null,null,null,null,null,30.5,0.85]
[null,null,null,null,null,null,null,null,null,null,null,null,null,null,null,null,null,null,null,null,30.6,0.85]
[null,null,null,null,null,null,null,null,null,null,null,null,null,null,null,null,null,null,null,null,30.7,0.85]
[null,null,null,null,null,null,null,null,null,null,null,null,null,null,null,null,null,null,null,null,30.8,0.85]
[null,null,null,null,null,null,null,null,null,null,null,null,null,null,null,null,null,null,null,null,30.9,0.85]
[null,null,null,null,null,null,null,null,null,null,null,null,null,null,null,null,null,null,null,null,31,0.9]
[null,null,null,null,null,null,null,null,null,null,null,null,null,null,null,null,null,null,null,null,31.1,0.9]
[null,null,null,null,null,null,null,null,null,null,null,null,null,null,null,null,null,null,null,null,31.2,0.9]
[null,null,null,null,null,null,null,null,null,null,null,null,null,null,null,null,null,null,null,null,31.3,0.9]
[null,null,null,null,null,null,null,null,null,null,null,null,null,null,null,null,null,null,null,null,31.4,0.9]
[null,null,null,null,null,null,null,null,null,null,null,null,null,null,null,null,null,null,null,null,31.5,0.9]
[null,null,null,null,null,null,null,null,null,null,null,null,null,null,null,null,null,null,null,null,31.6,0.9]
[null,null,null,null,null,null,null,null,null,null,null,null,null,null,null,null,null,null,null,null,31.7,0.9]
[null,null,null,null,null,null,null,null,null,null,null,null,null,null,null,null,null,null,null,null,31.8,0.9]
[null,null,null,null,null,null,null,null,null,null,null,null,null,null,null,null,null,null,null,null,31.9,0.9]
[null,null,null,null,null,null,null,null,null,null,null,null,null,null,null,null,null,null,null,null,32,0.9]
[null,null,null,null,null,null,null,null,null,null,null,null,null,null,null,null,null,null,null,null,32.1,0.9]
[null,null,null,null,null,null,null,null,null,null,null,null,null,null,null,null,null,null,null,null,32.200000000000003,0.9]
[null,null,null,null,null,null,null,null,null,null,null,null,null,null,null,null,null,null,null,null,32.299999999999997,0.9]
[null,null,null,null,null,null,null,null,null,null,null,null,null,null,null,null,null,null,null,null,32.4,0.9]
[null,null,null,null,null,null,null,null,null,null,null,null,null,null,null,null,null,null,null,null,32.5,0.9]
[null,null,null,null,null,null,null,null,null,null,null,null,null,null,null,null,null,null,null,null,32.6,0.9]
[null,null,null,null,null,null,null,null,null,null,null,null,null,null,null,null,null,null,null,null,32.700000000000003,0.9]
[null,null,null,null,null,null,null,null,null,null,null,null,null,null,null,null,null,null,null,null,32.799999999999997,0.9]
[null,null,null,null,null,null,null,null,null,null,null,null,null,null,null,null,null,null,null,null,32.9,0.9]
[null,null,null,null,null,null,null,null,null,null,null,null,null,null,null,null,null,null,null,null,33,0.9]
[null,null,null,null,null,null,null,null,null,null,null,null,null,null,null,null,null,null,null,null,33.1,0.9]
[null,null,null,null,null,null,null,null,null,null,null,null,null,null,null,null,null,null,null,null,33.200000000000003,0.9]
[null,null,null,null,null,null,null,null,null,null,null,null,null,null,null,null,null,null,null,null,33.299999999999997,0.9]
[null,null,null,null,null,null,null,null,null,null,null,null,null,null,null,null,null,null,null,null,33.4,0.9]
[null,null,null,null,null,null,null,null,null,null,null,null,null,null,null,null,null,null,null,null,33.5,0.9]
[null,null,null,null,null,null,null,null,null,null,null,null,null,null,null,null,null,null,null,null,33.6,0.9]
[null,null,null,null,null,null,null,null,null,null,null,null,null,null,null,null,null,null,null,null,33.700000000000003,0.9]
[null,null,null,null,null,null,null,null,null,null,null,null,null,null,null,null,null,null,null,null,33.799999999999997,0.9]
[null,null,null,null,null,null,null,null,null,null,null,null,null,null,null,null,null,null,null,null,33.9,0.9]
[null,null,null,null,null,null,null,null,null,null,null,null,null,null,null,null,null,null,null,null,34,0.9]
[null,null,null,null,null,null,null,null,null,null,null,null,null,null,null,null,null,null,null,null,34.1,0.9]
[null,null,null,null,null,null,null,null,null,null,null,null,null,null,null,null,null,null,null,null,34.200000000000003,0.9]
[null,null,null,null,null,null,null,null,null,null,null,null,null,null,null,null,null,null,null,null,34.299999999999997,0.9]
[null,null,null,null,null,null,null,null,null,null,null,null,null,null,null,null,null,null,null,null,34.4,0.9]
[null,null,null,null,null,null,null,null,null,null,null,null,null,null,null,null,null,null,null,null,34.5,0.9]
[null,null,null,null,null,null,null,null,null,null,null,null,null,null,null,null,null,null,null,null,34.6,0.9]
[null,null,null,null,null,null,null,null,null,null,null,null,null,null,null,null,null,null,null,null,34.700000000000003,0.9]
[null,null,null,null,null,null,null,null,null,null,null,null,null,null,null,null,null,null,null,null,34.799999999999997,0.9]
[null,null,null,null,null,null,null,null,null,null,null,null,null,null,null,null,null,null,null,null,34.9,0.9]
[null,null,null,null,null,null,null,null,null,null,null,null,null,null,null,null,null,null,null,null,35,0.9]
[null,null,null,null,null,null,null,null,null,null,null,null,null,null,null,null,null,null,null,null,35.1,0.9]
[null,null,null,null,null,null,null,null,null,null,null,null,null,null,null,null,null,null,null,null,35.200000000000003,0.9]
[null,null,null,null,null,null,null,null,null,null,null,null,null,null,null,null,null,null,null,null,35.299999999999997,0.9]
[null,null,null,null,null,null,null,null,null,null,null,null,null,null,null,null,null,null,null,null,35.4,0.9]
[null,null,null,null,null,null,null,null,null,null,null,null,null,null,null,null,null,null,null,null,35.5,0.9]
[null,null,null,null,null,null,null,null,null,null,null,null,null,null,null,null,null,null,null,null,35.6,0.9]
[null,null,null,null,null,null,null,null,null,null,null,null,null,null,null,null,null,null,null,null,35.700000000000003,0.9]
[null,null,null,null,null,null,null,null,null,null,null,null,null,null,null,null,null,null,null,null,35.799999999999997,0.9]
[null,null,null,null,null,null,null,null,null,null,null,null,null,null,null,null,null,null,null,null,35.9,0.9]
[null,null,null,null,null,null,null,null,null,null,null,null,null,null,null,null,null,null,null,null,36,0.9]
[null,null,null,null,null,null,null,null,null,null,null,null,null,null,null,null,null,null,null,null,36.1,0.9]
[null,null,null,null,null,null,null,null,null,null,null,null,null,null,null,null,null,null,null,null,36.200000000000003,0.9]
[null,null,null,null,null,null,null,null,null,null,null,null,null,null,null,null,null,null,null,null,36.299999999999997,0.9]
[null,null,null,null,null,null,null,null,null,null,null,null,null,null,null,null,null,null,null,null,36.4,0.9]
[null,null,null,null,null,null,null,null,null,null,null,null,null,null,null,null,null,null,null,null,36.5,0.9]
[null,null,null,null,null,null,null,null,null,null,null,null,null,null,null,null,null,null,null,null,36.6,0.9]
[null,null,null,null,null,null,null,null,null,null,null,null,null,null,null,null,null,null,null,null,36.700000000000003,0.9]
[null,null,null,null,null,null,null,null,null,null,null,null,null,null,null,null,null,null,null,null,36.799999999999997,0.9]
[null,null,null,null,null,null,null,null,null,null,null,null,null,null,null,null,null,null,null,null,36.9,0.9]
[null,null,null,null,null,null,null,null,null,null,null,null,null,null,null,null,null,null,null,null,37,0.9]
[null,null,null,null,null,null,null,null,null,null,null,null,null,null,null,null,null,null,null,null,37.1,0.9]
[null,null,null,null,null,null,null,null,null,null,null,null,null,null,null,null,null,null,null,null,37.200000000000003,0.9]
[null,null,null,null,null,null,null,null,null,null,null,null,null,null,null,null,null,null,null,null,37.299999999999997,0.9]
[null,null,null,null,null,null,null,null,null,null,null,null,null,null,null,null,null,null,null,null,37.4,0.9]
[null,null,null,null,null,null,null,null,null,null,null,null,null,null,null,null,null,null,null,null,37.5,0.9]
[null,null,null,null,null,null,null,null,null,null,null,null,null,null,null,null,null,null,null,null,37.6,0.9]
[null,null,null,null,null,null,null,null,null,null,null,null,null,null,null,null,null,null,null,null,37.700000000000003,0.9]
[null,null,null,null,null,null,null,null,null,null,null,null,null,null,null,null,null,null,null,null,37.799999999999997,0.9]
[null,null,null,null,null,null,null,null,null,null,null,null,null,null,null,null,null,null,null,null,37.9,0.9]
[null,null,null,null,null,null,null,null,null,null,null,null,null,null,null,null,null,null,null,null,38,0.9]
[null,null,null,null,null,null,null,null,null,null,null,null,null,null,null,null,null,null,null,null,38.1,0.9]
[null,null,null,null,null,null,null,null,null,null,null,null,null,null,null,null,null,null,null,null,38.200000000000003,0.9]
[null,null,null,null,null,null,null,null,null,null,null,null,null,null,null,null,null,null,null,null,38.299999999999997,0.9]
[null,null,null,null,null,null,null,null,null,null,null,null,null,null,null,null,null,null,null,null,38.4,0.9]
[null,null,null,null,null,null,null,null,null,null,null,null,null,null,null,null,null,null,null,null,38.5,0.9]
[null,null,null,null,null,null,null,null,null,null,null,null,null,null,null,null,null,null,null,null,38.6,0.9]
[null,null,null,null,null,null,null,null,null,null,null,null,null,null,null,null,null,null,null,null,38.700000000000003,0.9]
[null,null,null,null,null,null,null,null,null,null,null,null,null,null,null,null,null,null,null,null,38.799999999999997,0.9]
[null,null,null,null,null,null,null,null,null,null,null,null,null,null,null,null,null,null,null,null,38.9,0.9]
[null,null,null,null,null,null,null,null,null,null,null,null,null,null,null,null,null,null,null,null,39,0.9]
[null,null,null,null,null,null,null,null,null,null,null,null,null,null,null,null,null,null,null,null,39.1,0.9]
[null,null,null,null,null,null,null,null,null,null,null,null,null,null,null,null,null,null,null,null,39.200000000000003,0.9]
[null,null,null,null,null,null,null,null,null,null,null,null,null,null,null,null,null,null,null,null,39.299999999999997,0.9]
[null,null,null,null,null,null,null,null,null,null,null,null,null,null,null,null,null,null,null,null,39.4,0.9]
[null,null,null,null,null,null,null,null,null,null,null,null,null,null,null,null,null,null,null,null,39.5,0.9]
[null,null,null,null,null,null,null,null,null,null,null,null,null,null,null,null,null,null,null,null,39.6,0.9]
[null,null,null,null,null,null,null,null,null,null,null,null,null,null,null,null,null,null,null,null,39.700000000000003,0.9]
[null,null,null,null,null,null,null,null,null,null,null,null,null,null,null,null,null,null,null,null,39.799999999999997,0.9]
[null,null,null,null,null,null,null,null,null,null,null,null,null,null,null,null,null,null,null,null,39.9,0.9]
[null,null,null,null,null,null,null,null,null,null,null,null,null,null,null,null,null,null,null,null,40,0.9]
[null,null,null,null,null,null,null,null,null,null,null,null,null,null,null,null,null,null,null,null,40.1,0.9]
[null,null,null,null,null,null,null,null,null,null,null,null,null,null,null,null,null,null,null,null,40.200000000000003,0.9]
[null,null,null,null,null,null,null,null,null,null,null,null,null,null,null,null,null,null,null,null,40.299999999999997,0.9]
[null,null,null,null,null,null,null,null,null,null,null,null,null,null,null,null,null,null,null,null,40.4,0.9]
[null,null,null,null,null,null,null,null,null,null,null,null,null,null,null,null,null,null,null,null,40.5,0.9]
[null,null,null,null,null,null,null,null,null,null,null,null,null,null,null,null,null,null,null,null,40.6,0.9]
[null,null,null,null,null,null,null,null,null,null,null,null,null,null,null,null,null,null,null,null,40.700000000000003,0.9]
[null,null,null,null,null,null,null,null,null,null,null,null,null,null,null,null,null,null,null,null,40.799999999999997,0.9]
[null,null,null,null,null,null,null,null,null,null,null,null,null,null,null,null,null,null,null,null,40.9,0.9]